bitfinex/quotes_BTCUSD_20241117
["timestamp","ask_amount","ask_price","bid_price","bid_amount"]
[1731848235550,0.0008573,91049.0,91048.0,0.11192386]
[1731848235766,0.0008573,91049.0,91046.0,0.219667]
[1731848235987,0.0008573,91049.0,91048.0,0.11192386]
[1731848236217,0.0008573,91049.0,91047.0,0.11192544]
[1731848236426,0.0008573,91049.0,91043.0,0.219676]
[1731848236427,0.0008573,91049.0,91048.0,0.11192386]
[1731848241890,0.0008573,91049.0,91048.0,0.15710601]
[1731848243500,0.219635,91060.0,91048.0,0.04727401]
[1731848243711,0.109823,91056.0,91050.0,0.109828]
[1731848243946,0.109818,91059.0,91050.0,0.109828]
[1731848244165,0.109825,91054.0,91051.0,0.00209376]
[1731848244401,0.109823,91056.0,91051.0,0.00209376]
[1731848244613,0.109824,91055.0,91049.0,0.10983]
[1731848244858,0.109824,91055.0,91052.0,0.00209219]
[1731848245080,0.109824,91055.0,91049.0,0.10983]
[1731848245315,0.109824,91055.0,91046.0,0.37310862]
[1731848245316,0.109824,91055.0,91053.0,0.00208904]
[1731848245544,0.109824,91055.0,91050.0,0.109829]
[1731848245806,0.219638,91059.0,91054.0,0.00208747]
[1731848246028,0.10982,91058.0,91048.0,0.109831]
[1731848246258,0.109824,91055.0,91049.0,0.10983]
[1731848246487,0.21964,91058.0,91047.0,0.219666]
[1731848246699,0.109823,91055.0,91050.0,0.109829]
[1731848248532,0.109821,91057.0,91047.0,0.219666]
[1731848248744,0.0102899,91056.0,91051.0,0.109828]
[1731848248950,0.109821,91057.0,91051.0,0.109828]
[1731848249137,0.0102899,91056.0,91051.0,0.109828]
[1731848249397,0.109821,91057.0,91051.0,0.109828]
[1731848249614,0.298734,91061.0,91051.0,0.109828]
[1731848249615,0.01028972,91056.0,91051.0,0.109828]
[1731848249829,0.109823,91056.0,91051.0,0.109828]
[1731848250014,0.34358025,91061.0,91051.0,0.109828]
[1731848250015,0.109822,91057.0,91051.0,0.109828]
[1731848250255,0.0102896,91056.0,91051.0,0.109828]
[1731848250467,0.109822,91057.0,91052.0,0.00209376]
[1731848250725,0.01028963,91056.0,91052.0,0.00209376]
[1731848250939,0.109822,91057.0,91052.0,0.00209376]
[1731848251157,0.01028963,91056.0,91052.0,0.00209376]
[1731848251371,0.109823,91056.0,91052.0,0.00209376]
[1731848251800,0.109818,91059.0,91052.0,0.00209376]
[1731848252049,0.109822,91057.0,91050.0,0.10192276]
[1731848252270,0.12011257,91056.0,91053.0,0.00196447]
[1731848252488,0.109821,91058.0,91051.0,0.109828]
[1731848252699,0.109823,91056.0,91054.0,0.00195471]
[1731848252953,0.109823,91056.0,91051.0,0.109828]
[1731848253630,0.109823,91056.0,91052.0,0.00195786]
[1731848254751,0.109818,91060.0,91052.0,0.00195786]
[1731848254994,0.01028934,91059.0,91052.0,0.00195786]
[1731848255211,0.21964,91058.0,91052.0,0.00195786]
[1731848255450,0.109823,91056.0,91052.0,0.00195786]
[1731848255674,0.329461,91058.0,91052.0,0.00195786]
[1731848255904,0.12011031,91057.0,91052.0,0.00195786]
[1731848256132,0.109821,91057.0,91052.0,0.11178386]
[1731848257453,0.219638,91059.0,91052.0,0.11178386]
[1731848257664,0.01028949,91058.0,91053.0,0.109825]
[1731848257877,0.01028949,91057.0,91053.0,0.109825]
[1731848258088,0.109821,91057.0,91054.0,0.00195642]
[1731848258290,0.10982,91058.0,91054.0,0.00195642]
[1731848258560,0.10982,91058.0,91050.0,0.09818326]
[1731848258561,0.0102897,91057.0,91050.0,0.09818326]
[1731848258782,0.10982,91058.0,91050.0,0.0982908]
[1731848259001,0.01028971,91057.0,91052.0,0.109826]
[1731848259216,0.10982,91058.0,91052.0,0.109826]
[1731848259434,0.01029006,91057.0,91053.0,0.00195642]
[1731848259656,0.10982,91058.0,91053.0,0.00195642]
[1731848259875,0.01029004,91057.0,91053.0,0.11178142]
[1731848260083,0.10982,91058.0,91053.0,0.109825]
[1731848260319,0.01029052,91057.0,91054.0,0.00195485]
[1731848260553,0.0791,91061.0,91054.0,0.00195485]
[1731848260554,0.01029052,91056.0,91054.0,0.00195485]
[1731848260771,0.219639,91059.0,91049.0,0.0982908]
[1731848260986,0.219639,91059.0,91055.0,0.00195328]
[1731848260987,0.109822,91056.0,91055.0,0.00195328]
[1731848261199,0.0481,91057.0,91048.0,0.0017148]
[1731848261448,0.219649,91055.0,91048.0,0.0017148]
[1731848261660,0.109826,91053.0,91049.0,0.00196271]
[1731848261873,0.109828,91051.0,91049.0,0.00196271]
[1731848262523,0.109827,91052.0,91049.0,0.00196271]
[1731848263177,0.109827,91052.0,91051.0,0.0017146]
[1731848263635,0.109827,91052.0,91051.0,0.00366631]
[1731848263850,0.109827,91052.0,91051.0,0.0017146]
[1731848264066,0.109827,91052.0,91051.0,0.00366631]
[1731848264301,0.109827,91052.0,91051.0,0.0017146]
[1731848264508,0.219647,91055.0,91051.0,0.00366631]
[1731848264797,0.109826,91053.0,91051.0,0.0017146]
[1731848265013,0.109826,91053.0,91052.0,0.00195485]
[1731848265224,0.0481,91057.0,91052.0,0.00195485]
[1731848265434,0.01029305,91056.0,91052.0,0.00195485]
[1731848265648,0.01029305,91055.0,91052.0,0.00195485]
[1731848265861,0.109824,91055.0,91052.0,0.00195485]
[1731848266044,0.0481,91057.0,91052.0,0.00195485]
[1731848266299,0.1201157,91056.0,91052.0,0.00195485]
[1731848266523,0.0102937,91055.0,91052.0,0.00195485]
[1731848266747,0.0481,91057.0,91052.0,0.00195485]
[1731848266936,0.22993887,91056.0,91052.0,0.00195485]
[1731848267196,0.109825,91054.0,91051.0,0.0017146]
[1731848267631,0.109825,91054.0,91052.0,0.00183601]
[1731848268530,0.219645,91056.0,91052.0,0.00183601]
[1731848268766,0.109826,91053.0,91052.0,0.00183601]
[1731848268982,0.12011993,91053.0,91052.0,0.00183601]
[1731848269191,0.109826,91053.0,91052.0,0.00183601]
[1731848269629,0.1201198,91053.0,91052.0,0.00183601]
[1731848269844,0.0102938,91053.0,91052.0,0.00183601]
[1731848270060,0.109825,91054.0,91052.0,0.00183601]
[1731848270271,0.109826,91053.0,91052.0,0.00183601]
[1731848270761,0.12011984,91053.0,91052.0,0.00183601]
[1731848271199,0.109826,91053.0,91052.0,0.00183601]
[1731848272554,0.12011972,91053.0,91052.0,0.00183601]
[1731848272762,0.109826,91053.0,91052.0,0.00183601]
[1731848273414,0.26390439,91055.0,91052.0,0.00183601]
[1731848273653,0.109826,91053.0,91051.0,0.0017146]
[1731848274100,0.109826,91053.0,91052.0,0.00191245]
[1731848274317,0.1201198,91053.0,91052.0,0.00191245]
[1731848274753,0.0102938,91053.0,91052.0,0.00191245]
[1731848275418,0.01029383,91053.0,91052.0,0.00191245]
[1731848276335,0.109825,91054.0,91052.0,0.00191245]
[1731848277382,0.01029362,91053.0,91052.0,0.00191245]
[1731848277815,0.109823,91056.0,91052.0,0.00191245]
[1731848278032,0.01029347,91055.0,91052.0,0.00191245]
[1731848278244,0.0008573,91058.0,91052.0,0.22156545]
[1731848278469,0.01029306,91057.0,91056.0,0.109822]
[1731848279143,0.01029306,91057.0,91056.0,0.00191245]
[1731848279355,0.01029306,91057.0,91056.0,0.109822]
[1731848280694,0.0008573,91058.0,91056.0,0.109822]
[1731848280895,0.01029303,91057.0,91056.0,0.109822]
[1731848284197,0.01688784,91057.0,91056.0,0.109822]
[1731848288493,0.02084514,91061.0,91060.0,0.109817]
[1731848288727,0.02084514,91061.0,91057.0,0.10982]
[1731848290352,0.02084514,91061.0,91055.0,0.219647]
[1731848290573,0.02084514,91061.0,91051.0,0.14400469]
[1731848290574,0.02084514,91061.0,91056.0,0.219645]
[1731848290791,0.02084514,91061.0,91058.0,0.109819]
[1731848291218,0.02084514,91061.0,91056.0,0.2220395]
[1731848291219,0.02084514,91061.0,91057.0,0.109821]
[1731848291730,0.02084514,91061.0,91057.0,0.10982]
[1731848291950,0.02084514,91061.0,91056.0,0.219645]
[1731848292176,0.0461,91073.0,91072.0,0.109802]
[1731848292396,0.0461,91073.0,91058.0,0.10906255]
[1731848292397,0.0461,91081.0,91080.0,0.109793]
[1731848292613,0.0461,91081.0,91066.0,0.078]
[1731848292614,0.16470033,91082.0,91066.0,0.078]
[1731848292824,0.16470033,91082.0,91068.0,0.109808]
[1731848293044,0.16470033,91082.0,91073.0,0.109801]
[1731848293274,0.16470033,91082.0,91069.0,0.219613]
[1731848293505,0.109792,91081.0,91074.0,0.109799]
[1731848293735,0.109792,91081.0,91072.0,0.219606]
[1731848293947,0.109792,91081.0,91074.0,0.1098]
[1731848294357,0.109792,91081.0,91070.0,0.219611]
[1731848294637,0.16470033,91082.0,91062.0,0.21963]
[1731848294638,0.0758,91079.0,91062.0,0.21963]
[1731848294860,0.109803,91072.0,91065.0,0.109811]
[1731848295122,0.109803,91072.0,91066.0,0.109809]
[1731848295363,0.109802,91073.0,91066.0,0.109809]
[1731848295590,0.0461,91064.0,91053.0,0.04568052]
[1731848295816,0.0461,91064.0,91055.0,0.10906255]
[1731848296030,0.0461,91064.0,91061.0,0.24515613]
[1731848296244,0.0461,91064.0,91062.0,0.24515613]
[1731848296460,0.0461,91064.0,91063.0,0.14705597]
[1731848296712,0.0461,91064.0,91062.0,0.14705597]
[1731848297190,0.0461,91064.0,91062.0,0.09806424]
[1731848297422,0.0461,91064.0,91061.0,0.109816]
[1731848297861,0.0461,91064.0,91060.0,0.109817]
[1731848298075,0.0461,91064.0,91059.0,0.09805616]
[1731848298308,0.0461,91064.0,91058.0,0.31769516]
[1731848298523,0.0461,91064.0,91060.0,0.09805616]
[1731848298743,0.0461,91064.0,91061.0,0.09805616]
[1731848298979,0.219611,91070.0,91061.0,0.09805616]
[1731848298980,0.0461,91082.0,91062.0,0.27825236]
[1731848299264,0.0461,91082.0,91069.0,0.109806]
[1731848299265,0.16470033,91070.0,91069.0,0.109806]
[1731848299492,0.0008573,91076.0,91075.0,0.109799]
[1731848300130,0.0008573,91076.0,91075.0,0.11164264]
[1731848303512,0.01476352,91082.0,91078.0,0.109795]
[1731848303725,0.16470033,91083.0,91078.0,0.109795]
[1731848303936,0.109789,91084.0,91079.0,0.00182901]
[1731848304371,0.109789,91084.0,91078.0,0.109795]
[1731848305510,0.0758,91085.0,91079.0,0.109794]
[1731848305733,0.0758,91085.0,91078.0,0.109795]
[1731848305954,0.0758,91085.0,91075.0,0.219599]
[1731848306183,0.0758,91085.0,91079.0,0.00182849]
[1731848306398,0.1219,91085.0,91079.0,0.109793]
[1731848306644,0.1219,91085.0,91075.0,0.219599]
[1731848306645,0.1219,91085.0,91080.0,0.11161892]
[1731848306865,0.1219,91085.0,91080.0,0.00182692]
[1731848307118,0.1219,91085.0,91080.0,0.11161992]
[1731848307326,0.1219,91085.0,91080.0,0.00182692]
[1731848307536,0.1219,91085.0,91080.0,0.11161992]
[1731848307745,0.1219,91085.0,91080.0,0.109793]
[1731848307962,0.1219,91085.0,91081.0,0.00183107]
[1731848308422,0.1219,91085.0,91067.0,0.219618]
[1731848308668,0.1219,91085.0,91082.0,0.00182377]
[1731848308875,0.1219,91085.0,91079.0,0.109793]
[1731848309105,0.231687,91085.0,91083.0,0.0018232]
[1731848309317,0.1219,91085.0,91083.0,0.0018232]
[1731848309793,0.1219,91085.0,91080.0,0.109793]
[1731848310010,0.1219,91085.0,91084.0,0.001846]
[1731848310224,0.1219,91085.0,91081.0,0.109792]
[1731848310470,0.1219,91085.0,91084.0,0.001846]
[1731848310694,0.1219,91085.0,91081.0,0.109792]
[1731848310911,0.1219,91085.0,91084.0,0.001846]
[1731848311132,0.1219,91085.0,91081.0,0.109792]
[1731848311366,0.1219,91085.0,91084.0,0.001846]
[1731848311599,0.1219,91085.0,91083.0,0.109789]
[1731848311827,0.1219,91085.0,91084.0,0.11163829]
[1731848312249,0.1227566,91085.0,91084.0,0.00185029]
[1731848312700,0.1227566,91085.0,91083.0,0.109789]
[1731848312909,0.1227566,91085.0,91084.0,0.00184457]
[1731848313124,0.0008566,91085.0,91084.0,0.11163257]
[1731848317761,0.1106436,91085.0,91084.0,0.00184457]
[1731848317991,0.2380436,91085.0,91084.0,0.00184457]
[1731848318225,0.10979,91083.0,91078.0,0.109795]
[1731848318453,0.0522566,91085.0,91068.0,0.10906255]
[1731848318690,0.1620436,91085.0,91079.0,0.109794]
[1731848318920,0.1620436,91085.0,91079.0,0.109793]
[1731848319146,0.1620436,91085.0,91080.0,0.00183965]
[1731848319390,0.0522566,91085.0,91080.0,0.00183965]
[1731848319621,0.0522566,91085.0,91081.0,0.109792]
[1731848319844,0.0522566,91085.0,91081.0,0.00184167]
[1731848320112,0.109789,91084.0,91081.0,0.00184167]
[1731848320328,0.0522566,91085.0,91075.0,0.219597]
[1731848320546,0.0522566,91085.0,91082.0,0.0018328]
[1731848320768,0.109791,91082.0,91075.0,0.219597]
[1731848320988,0.109789,91084.0,91079.0,0.109794]
[1731848321646,0.10979,91083.0,91080.0,0.00184167]
[1731848321868,0.2087446,91085.0,91080.0,0.109793]
[1731848322092,0.01027295,91084.0,91081.0,0.00183853]
[1731848322309,0.2087446,91085.0,91081.0,0.00183853]
[1731848322547,0.12006495,91084.0,91081.0,0.00183853]
[1731848322801,0.01027595,91083.0,91081.0,0.00183853]
[1731848323050,0.2087436,91085.0,91081.0,0.00183853]
[1731848323267,0.01027595,91084.0,91081.0,0.00183853]
[1731848323501,0.2087436,91085.0,91078.0,0.109795]
[1731848323719,0.12006498,91084.0,91082.0,0.00183853]
[1731848323942,0.01027598,91083.0,91076.0,0.109798]
[1731848324172,0.0989566,91085.0,91076.0,0.109798]
[1731848324173,0.109791,91082.0,91076.0,0.109798]
[1731848324387,0.0989566,91085.0,91069.0,0.219613]
[1731848324608,0.0989566,91085.0,91068.0,0.10906255]
[1731848324609,0.219581,91083.0,91068.0,0.10906255]
[1731848324826,0.109791,91082.0,91076.0,0.109797]
[1731848325304,0.109793,91080.0,91076.0,0.109797]
[1731848325539,0.109791,91082.0,91077.0,0.00184279]
[1731848325805,0.109791,91082.0,91077.0,0.11163879]
[1731848326263,0.0998131,91085.0,91077.0,0.00184279]
[1731848326264,0.329365,91084.0,91077.0,0.00184279]
[1731848326450,0.109794,91080.0,91074.0,0.1098]
[1731848326691,0.109791,91082.0,91073.0,0.219602]
[1731848326912,0.109791,91082.0,91077.0,0.109796]
[1731848327354,0.109791,91082.0,91078.0,0.00183504]
[1731848328046,0.219577,91084.0,91078.0,0.00183504]
[1731848328251,0.109793,91081.0,91078.0,0.00183504]
[1731848328464,0.109793,91081.0,91076.0,0.109798]
[1731848328675,0.0998131,91085.0,91073.0,0.219604]
[1731848328905,0.0998131,91085.0,91077.0,0.00184098]
[1731848329157,0.219577,91084.0,91072.0,0.001713]
[1731848329378,0.109798,91076.0,91072.0,0.001713]
[1731848329610,0.219577,91084.0,91073.0,0.00185198]
[1731848329827,0.1098,91075.0,91073.0,0.00185198]
[1731848330046,0.1098,91074.0,91073.0,0.00185198]
[1731848330267,0.1098,91074.0,91072.0,0.001713]
[1731848330488,0.109802,91073.0,91072.0,0.001713]
[1731848331042,0.219599,91075.0,91072.0,0.001713]
[1731848331268,0.109802,91073.0,91072.0,0.001713]
[1731848331908,0.1098,91075.0,91072.0,0.001713]
[1731848333347,0.219589,91079.0,91072.0,0.001713]
[1731848333696,0.10979,91083.0,91076.0,0.109797]
[1731848333909,0.04538702,91082.0,91076.0,0.109797]
[1731848334131,0.27449033,91083.0,91076.0,0.109797]
[1731848334349,0.10979,91083.0,91078.0,0.109795]
[1731848334780,0.10979,91083.0,91075.0,0.219599]
[1731848334781,0.109791,91082.0,91075.0,0.219599]
[1731848334998,0.0008565,91085.0,91078.0,0.109795]
[1731848334999,0.109789,91084.0,91078.0,0.109795]
[1731848335215,0.04565477,91085.0,91078.0,0.109795]
[1731848335499,0.10979,91083.0,91078.0,0.109795]
[1731848335701,0.0008565,91085.0,91074.0,0.219601]
[1731848335923,0.10979,91083.0,91078.0,0.109795]
[1731848337662,0.0008565,91085.0,91083.0,0.109789]
[1731848337884,0.0008565,91085.0,91076.0,0.0017128]
[1731848338119,0.0008565,91085.0,91081.0,0.109792]
[1731848338578,0.0008565,91085.0,91084.0,0.109788]
[1731848339463,0.0008565,91085.0,91084.0,0.11161766]
[1731848341011,0.0008565,91085.0,91084.0,0.00182966]
[1731848341429,0.0008565,91085.0,91083.0,0.109789]
[1731848341632,0.0008565,91085.0,91084.0,0.11161344]
[1731848347965,0.0008565,91085.0,91084.0,0.00180488]
[1731848348222,0.0008565,91085.0,91084.0,0.109788]
[1731848348448,0.22635474,91098.0,91092.0,0.109778]
[1731848348637,0.27080367,91098.0,91092.0,0.109778]
[1731848348896,0.29324883,91098.0,91090.0,0.109781]
[1731848349108,0.109774,91096.0,91090.0,0.109781]
[1731848349549,0.109774,91096.0,91090.0,0.11217414]
[1731848349972,0.109774,91096.0,91090.0,0.00239314]
[1731848350186,0.109774,91096.0,91091.0,0.10978]
[1731848350620,0.109775,91095.0,91085.0,0.219575]
[1731848350799,0.109775,91095.0,91089.0,0.109781]
[1731848351102,0.16103167,91098.0,91091.0,0.10978]
[1731848351331,0.109774,91096.0,91091.0,0.10978]
[1731848351784,0.109775,91096.0,91090.0,0.109781]
[1731848351995,0.109775,91095.0,91090.0,0.109781]
[1731848353785,0.109774,91096.0,91090.0,0.10978]
[1731848354222,0.109773,91097.0,91091.0,0.109779]
[1731848354460,0.109773,91097.0,91082.0,0.0473]
[1731848354461,0.12184893,91098.0,91083.0,0.219579]
[1731848354719,0.12184893,91098.0,91083.0,0.00219557]
[1731848354942,0.2203728,91110.0,91084.0,0.00206647]
[1731848354943,0.109765,91103.0,91084.0,0.00206647]
[1731848355174,0.16470033,91103.0,91084.0,0.00206647]
[1731848355423,0.16470033,91103.0,91083.0,0.00219557]
[1731848355424,0.0829,91104.0,91085.0,0.10906255]
[1731848355669,0.16470033,91104.0,91101.0,0.109767]
[1731848355884,0.16470033,91104.0,91103.0,0.109765]
[1731848356101,0.0008568,91110.0,91099.0,0.0489]
[1731848356340,0.0008568,91110.0,91105.0,0.109763]
[1731848356781,0.0008568,91110.0,91101.0,0.219536]
[1731848357006,0.0008568,91110.0,91105.0,0.109762]
[1731848357257,0.0008568,91110.0,91100.0,0.219538]
[1731848357507,0.0008568,91110.0,91104.0,0.109763]
[1731848357724,0.0008568,91110.0,91100.0,0.219538]
[1731848357936,0.0008568,91110.0,91101.0,0.219536]
[1731848358167,0.0008568,91110.0,91105.0,0.109763]
[1731848359240,0.0008568,91110.0,91102.0,0.219534]
[1731848359459,0.0008568,91110.0,91105.0,0.109762]
[1731848360707,0.0008568,91110.0,91109.0,0.109758]
[1731848363593,0.09041403,91119.0,91114.0,0.109752]
[1731848364082,0.1934997,91122.0,91112.0,0.109754]
[1731848364083,0.0837567,91122.0,91112.0,0.109754]
[1731848364301,0.109745,91120.0,91112.0,0.109754]
[1731848364547,0.109747,91119.0,91112.0,0.109754]
[1731848364765,0.16470033,91118.0,91095.0,0.40051959]
[1731848365003,0.0837567,91122.0,91087.0,0.028]
[1731848365004,0.109764,91104.0,91103.0,0.16470033]
[1731848365245,0.109764,91104.0,91093.0,0.109776]
[1731848365246,0.219522,91107.0,91092.0,0.0017126]
[1731848365459,0.219526,91105.0,91096.0,0.16470033]
[1731848365675,0.109761,91107.0,91096.0,0.16470033]
[1731848365904,0.16470033,91107.0,91092.0,0.0017126]
[1731848366164,0.192677,91093.0,91092.0,0.0017126]
[1731848366764,0.0829,91093.0,91092.0,0.0017126]
[1731848367707,0.192677,91093.0,91092.0,0.0017126]
[1731848368165,0.238377,91093.0,91092.0,0.0017126]
[1731848378399,0.162377,91093.0,91092.0,0.0017126]
[1731848383522,0.155477,91093.0,91092.0,0.0017126]
[1731848386129,0.26453955,91093.0,91092.0,0.0017126]
[1731848386353,0.34203955,91093.0,91092.0,0.0017126]
[1731848386577,0.45203955,91093.0,91092.0,0.0017126]
[1731848387068,0.45403955,91093.0,91092.0,6e-07]
[1731848388413,0.55255892,91093.0,91092.0,6e-07]
[1731848388618,0.45403955,91093.0,91092.0,6e-07]
[1731848393410,0.88996255,91093.0,91092.0,6e-07]
[1731848393850,0.99973955,91093.0,91092.0,6e-07]
[1731848397777,0.99773955,91093.0,91092.0,6e-07]
[1731848398001,0.91023955,91093.0,91092.0,6e-07]
[1731848398215,0.86453955,91093.0,91092.0,6e-07]
[1731848398416,0.86539585,91093.0,91092.0,6e-07]
[1731848400150,0.109792,91081.0,91080.0,0.0727134]
[1731848400568,0.219577,91085.0,91080.0,0.0727134]
[1731848400777,0.109779,91092.0,91080.0,0.0727134]
[1731848400983,0.10979,91083.0,91080.0,0.0727134]
[1731848401192,0.109791,91082.0,91080.0,0.0727134]
[1731848401393,0.219576,91085.0,91080.0,0.0727134]
[1731848401605,0.10979,91083.0,91080.0,0.0727134]
[1731848401811,0.109791,91082.0,91080.0,0.0727134]
[1731848402021,0.0008563,91093.0,91080.0,0.0727134]
[1731848402235,0.0008563,91093.0,91079.0,0.0465]
[1731848402471,0.0008563,91093.0,91087.0,0.0465]
[1731848402687,0.00077578,91093.0,91087.0,0.0465]
[1731848402896,0.00077578,91093.0,91091.0,0.109779]
[1731848403104,0.00077578,91093.0,91088.0,0.190783]
[1731848403319,0.00077578,91093.0,91088.0,0.081]
[1731848403551,0.109782,91089.0,91088.0,0.081]
[1731848404302,0.11055378,91093.0,91088.0,0.081]
[1731848404535,0.00077578,91093.0,91088.0,0.081]
[1731848404773,0.00077578,91093.0,91092.0,0.109779]
[1731848404991,0.00077578,91093.0,91092.0,0.081]
[1731848405204,0.00077578,91093.0,91092.0,0.190779]
[1731848406113,0.11055278,91093.0,91092.0,0.081]
[1731848406816,0.16549478,91095.0,91092.0,0.081]
[1731848407034,0.219543,91099.0,91092.0,0.081]
[1731848407035,0.219532,91103.0,91092.0,0.081]
[1731848407255,0.109763,91105.0,91092.0,0.081]
[1731848407472,0.219513,91111.0,91092.0,0.081]
[1731848407729,0.109771,91099.0,91092.0,0.081]
[1731848407948,0.109772,91098.0,91092.0,0.081]
[1731848408182,0.219526,91105.0,91092.0,0.081]
[1731848408183,0.109777,91094.0,91092.0,0.081]
[1731848408431,0.21015045,91108.0,91092.0,0.081]
[1731848408694,0.109777,91093.0,91092.0,0.081]
[1731848408904,0.219549,91096.0,91085.0,0.081]
[1731848409116,0.109785,91087.0,91085.0,0.081]
[1731848409563,0.109786,91086.0,91085.0,0.081]
[1731848409784,0.16470033,91097.0,91085.0,0.081]
[1731848410012,0.109792,91081.0,91080.0,0.081]
[1731848410965,0.109797,91077.0,91076.0,0.0017128]
[1731848414700,0.16470033,91097.0,91076.0,0.0017128]
[1731848414954,0.16470033,91097.0,91092.0,0.08]
[1731848415429,0.109777,91093.0,91092.0,0.08]
[1731848416323,0.109779,91092.0,91087.0,0.048]
[1731848416554,0.109781,91091.0,91087.0,0.048]
[1731848417221,0.109781,91090.0,91087.0,0.048]
[1731848418161,0.109783,91088.0,91087.0,0.048]
[1731848418386,0.16470033,91094.0,91079.0,0.08]
[1731848418609,0.109792,91081.0,91079.0,0.08]
[1731848418832,0.10979,91083.0,91079.0,0.08]
[1731848419314,0.219567,91088.0,91076.0,0.0017128]
[1731848419606,0.109784,91088.0,91079.0,0.109793]
[1731848419854,0.109786,91086.0,91078.0,0.109795]
[1731848420553,0.219567,91089.0,91074.0,0.219599]
[1731848420803,0.16470033,91092.0,91074.0,0.219599]
[1731848421022,0.10979,91083.0,91076.0,0.109797]
[1731848421451,0.10979,91083.0,91074.0,0.219599]
[1731848421452,0.109791,91082.0,91074.0,0.1098]
[1731848421686,0.109791,91082.0,91075.0,0.109799]
[1731848421940,0.21957,91087.0,91075.0,0.109798]
[1731848422160,0.109789,91084.0,91076.0,0.1115096]
[1731848422377,0.109791,91082.0,91076.0,0.0017126]
[1731848422856,0.10979,91083.0,91076.0,0.1115106]
[1731848423096,0.109786,91086.0,91076.0,0.1115096]
[1731848423314,0.219563,91090.0,91076.0,0.1115096]
[1731848423315,0.219563,91090.0,91076.0,0.0017126]
[1731848423535,0.109787,91086.0,91079.0,0.109794]
[1731848423782,0.109787,91086.0,91077.0,0.219594]
[1731848423783,0.0008563,91093.0,91081.0,0.08]
[1731848424030,0.0008563,91093.0,91086.0,0.109785]
[1731848424279,0.0008563,91093.0,91092.0,0.109779]
[1731848424495,0.0008563,91093.0,91087.0,0.219568]
[1731848424783,0.0008563,91093.0,91090.0,0.10978]
[1731848424995,0.0008563,91093.0,91089.0,0.109781]
[1731848425186,0.0008563,91093.0,91087.0,0.219568]
[1731848425434,0.0008563,91093.0,91092.0,0.109779]
[1731848425703,0.0008563,91093.0,91090.0,0.10978]
[1731848425921,0.0008563,91093.0,91081.0,0.18906255]
[1731848426142,0.0008563,91093.0,91092.0,0.109779]
[1731848429180,0.0008563,91093.0,91092.0,0.189779]
[1731848429427,0.0008563,91093.0,91092.0,0.237779]
[1731848429662,0.0008563,91093.0,91092.0,0.23997434]
[1731848430137,0.1106333,91093.0,91092.0,0.128]
[1731848430378,0.0008563,91093.0,91085.0,0.08]
[1731848430594,0.0008563,91093.0,91078.0,0.1]
[1731848430828,0.21956,91091.0,91082.0,0.27449033]
[1731848431047,0.109781,91090.0,91083.0,0.109789]
[1731848431719,0.109781,91090.0,91079.0,0.219589]
[1731848431720,0.0008563,91093.0,91080.0,0.219587]
[1731848431996,0.0008563,91093.0,91077.0,0.18906255]
[1731848432227,0.0008563,91093.0,91076.0,0.2213086]
[1731848432228,0.21956,91091.0,91076.0,0.0017126]
[1731848432444,0.10979,91083.0,91077.0,0.16470033]
[1731848432681,0.219573,91086.0,91077.0,0.27449733]
[1731848432906,0.21956,91091.0,91076.0,0.0017126]
[1731848433132,0.109792,91081.0,91076.0,0.0017126]
[1731848433377,0.109794,91080.0,91076.0,0.0017126]
[1731848433873,0.002,91110.0,91076.0,0.0017126]
[1731848434110,0.109795,91079.0,91076.0,0.0017126]
[1731848434602,0.109792,91081.0,91076.0,0.0017126]
[1731848435072,0.109788,91084.0,91077.0,0.109796]
[1731848435313,0.109788,91084.0,91076.0,0.0017126]
[1731848435557,0.0008563,91093.0,91076.0,0.0017126]
[1731848435785,0.0008563,91093.0,91082.0,0.10979]
[1731848436037,0.109782,91089.0,91082.0,0.10979]
[1731848436773,0.109781,91090.0,91082.0,0.10979]
[1731848437272,0.21956,91091.0,91083.0,0.109789]
[1731848437516,0.21956,91091.0,91077.0,0.219594]
[1731848437743,0.109783,91089.0,91077.0,0.219594]
[1731848437978,0.109783,91089.0,91082.0,0.10979]
[1731848438492,0.21956,91091.0,91082.0,0.10979]
[1731848439405,0.109779,91092.0,91082.0,0.10979]
[1731848439630,0.109781,91091.0,91082.0,0.10979]
[1731848440324,0.109781,91091.0,91076.0,0.1115096]
[1731848440325,0.109787,91085.0,91076.0,0.1115096]
[1731848440536,0.109785,91087.0,91077.0,0.109796]
[1731848440755,0.109785,91087.0,91078.0,0.109794]
[1731848441038,0.21956,91091.0,91071.0,0.109803]
[1731848441039,0.109795,91079.0,91071.0,0.109803]
[1731848441275,0.109793,91081.0,91072.0,0.16470033]
[1731848441508,0.219575,91085.0,91068.0,0.1]
[1731848441746,0.16470033,91084.0,91068.0,0.1]
[1731848441985,0.109802,91073.0,91064.0,0.109812]
[1731848442257,0.16470033,91084.0,91066.0,0.16470033]
[1731848442258,0.1098,91075.0,91066.0,0.16470033]
[1731848442478,0.109797,91077.0,91070.0,0.109805]
[1731848442923,0.109797,91077.0,91065.0,0.10906255]
[1731848442924,0.16470033,91084.0,91063.0,0.0476]
[1731848443145,0.16470033,91084.0,91062.0,0.1]
[1731848443386,0.109807,91069.0,91063.0,0.16470033]
[1731848443598,0.2196,91075.0,91063.0,0.16470033]
[1731848443599,0.219587,91080.0,91063.0,0.16713531]
[1731848443825,0.109808,91069.0,91063.0,0.00243498]
[1731848444290,0.219579,91083.0,91063.0,0.00243498]
[1731848444529,0.16470033,91074.0,91063.0,0.00243498]
[1731848444798,0.109812,91064.0,91063.0,0.00243498]
[1731848445028,0.109812,91064.0,91057.0,0.109821]
[1731848445483,0.109811,91066.0,91058.0,0.109819]
[1731848445720,0.21962,91067.0,91056.0,0.2213566]
[1731848445934,0.109811,91065.0,91058.0,0.109819]
[1731848446146,0.109811,91065.0,91056.0,0.2213566]
[1731848446375,0.109811,91065.0,91059.0,0.109818]
[1731848446614,0.16470033,91071.0,91060.0,0.109817]
[1731848446615,0.109809,91068.0,91060.0,0.109817]
[1731848446845,0.10981,91066.0,91058.0,0.109818]
[1731848447283,0.10981,91066.0,91060.0,0.109817]